fUST/lending_fUST_20240211
["ID","MTS","AMOUNT","RATE_DAILY","PERIOD"]
[313686482,1707585039222,-4639.53716683,0.00026,2]
[313686483,1707585039230,-380.1847998,0.00026,2]
[313686484,1707585039238,-236.88146597,0.00026,2]
[313686485,1707585039248,-276.254445,0.00026,2]
[313686486,1707585039257,-244.341764,0.00026,2]
[313686487,1707585039266,-244.341764,0.00026,2]
[313686488,1707585039275,-290.807846,0.00026,2]
[313686489,1707585039284,-154.87609912,0.00026,7]
[313686490,1707585039293,-603.727229,0.00026,2]
[313686491,1707585039302,-603.727229,0.00026,2]
[313686492,1707585039311,-151.0,0.00026,2]
[313686493,1707585039320,-151.0,0.00026,2]
[313686494,1707585039329,-426.309569,0.00026,2]
[313686495,1707585039338,-426.309569,0.00026,2]
[313686496,1707585039347,-269.429414,0.00026,2]
[313686497,1707585039358,-151.0,0.00026181,2]
[313686498,1707585039369,-2229.08829496,0.000263,4]
[313686499,1707585039378,-676.6072319,0.000264,2]
[313686500,1707585039387,-200.0,0.00026552,15]
[313686501,1707585039396,-348.0,0.00026552,15]
[313686502,1707585039405,-1000.0,0.00026567,3]
[313686503,1707585039414,-1000.0,0.00026567,3]
[313686504,1707585039423,-1000.0,0.00026568,3]
[313686505,1707585039432,-1000.0,0.00026568,3]
[313686506,1707585039442,-1000.0,0.00026568,3]
[313686507,1707585039451,-1000.0,0.00026568,3]
[313686508,1707585039460,-1000.0,0.00026568,3]
[313686509,1707585039469,-1000.0,0.00026568,3]
[313686510,1707585039478,-151.0,0.0002666,2]
[313686511,1707585039487,-44444.0,0.000267,2]
[313686512,1707585039496,-578.0,0.000267,2]
[313686513,1707585039505,-234482.07450403,0.000268,2]
[313686514,1707585039579,-9693.25750684,0.000268,2]
[313686515,1707585039626,-28724.9506695,0.000268,2]
[313686563,1707585041481,-31784.24435527,0.000268,2]
[313686564,1707585041492,-2959.97236767,0.000268,2]
[313686565,1707585041503,-2937.58751239,0.000268,2]
[313686566,1707585041514,-5761.98972485,0.000268,2]
[313686567,1707585041526,-1305.06517547,0.000268,2]
[313686654,1707585046278,-500.0,0.000268,2]
[313686656,1707585046290,-2687.90812069,0.000268,2]
[313686837,1707586232350,-243.006066,0.00018324,2]
[313686839,1707586232360,-168.02029486,0.00018722,2]
[313686841,1707586232370,-20093.51596064,0.00018723,2]
[313686842,1707586232380,-24900.0,0.00018724,2]
[313686843,1707586232389,-611.57059793,0.00018821,2]
[313686845,1707586232399,-155.05892239,0.00018822,2]
[313686846,1707586232408,-19067.91394361,0.00018823,2]
[313686861,1707586238470,-14717.25669709,0.00018823,2]
[313686862,1707586238479,-168.422776,0.00019178,2]
[313686863,1707586238489,-163.83177483,0.00019598,2]
[313686864,1707586238498,-200.0,0.00019658,2]
[313686865,1707586238508,-1866.08593501,0.00019697,2]
[313686866,1707586238517,-154.90705577,0.00019697,2]
[313686867,1707586238526,-2823.1509297,0.00019698,2]
[313686868,1707586238535,-190.80118571,0.00019799,2]
[313686869,1707586238544,-163.83177483,0.000198,2]
[313686870,1707586238553,-906.12964084,0.00019899,2]
[313686871,1707586238562,-25969.08182624,0.0002,2]
[313686873,1707586238817,-1653.5673626,0.0002,2]
[313686875,1707586238836,-29520.01912096,0.0002,2]
[313686907,1707586241577,-795.54752961,0.0002,2]
[313686908,1707586241602,-15974.33900859,0.0002,2]
[313686909,1707586241612,-324.18448095,0.0002,2]
[313686910,1707586241622,-160.37388443,0.00020722,2]
[313686911,1707586241631,-905.35497142,0.00020722,2]
[313686912,1707586241640,-154.90705577,0.00020926,2]
[313686913,1707586241650,-1953.29369934,0.00020926,2]
[313686914,1707586241659,-5107.37231203,0.00020928,2]
[313686915,1707586241672,-9802.20843764,0.00020928,2]
[313686941,1707586243428,-6239.5422975,0.00020928,2]
[313686942,1707586243439,-22364.9225757,0.00020928,2]
[313686943,1707586243452,-376.98845193,0.00020928,2]
[313686944,1707586243462,-279.18546091,0.00021561,2]
[313686945,1707586243474,-220.81453909,0.00021561,2]
[313686946,1707586243483,-500.0,0.00021561,2]
[313686947,1707586243493,-250.0,0.00021561,2]
[313686948,1707586243503,-34.94669327,0.00021561,2]
[313686949,1707586243515,-381.1544474,0.00021561,2]
[313686950,1707586243525,-500.0,0.00021561,2]
[313686951,1707586243534,-356.86012523,0.00021561,2]
[313686952,1707586243544,-500.0,0.00021561,2]
[313686953,1707586243553,-347.6466822,0.00021561,2]
[313686954,1707586243562,-500.0,0.00021561,2]
[313686955,1707586243571,-478.77252893,0.00021561,2]
[313686956,1707586243581,-394.2768782,0.00021561,2]
[313686957,1707586243590,-173.39544374,0.00021561,2]
[313686958,1707586243599,-438.31625281,0.00021561,2]
[313686959,1707586243608,-349.09588983,0.00021562,2]
[313686960,1707586243617,-15088.40054788,0.00021562,2]
[313686961,1707586243627,-2121.18824105,0.00021562,2]
[313686962,1707586243636,-510.99104654,0.00021562,2]
[313686963,1707586243646,-2133.2718186,0.00021562,2]
[313686964,1707586243655,-280.0,0.00021624,7]
[313686965,1707586243664,-166.666666,0.00021918,2]
[313686966,1707586243674,-166.666666,0.00022431,2]
[313686967,1707586243683,-166.666666,0.00022944,2]
[313686968,1707586243692,-9973.24904659,0.00023,2]
[313686969,1707586243701,-1263.83385034,0.00023,2]
[313686970,1707586243710,-166.666666,0.00023456,2]
[313686971,1707586243719,-391.0,0.00023786,7]
[313686972,1707586243728,-166.666666,0.00023969,2]
[313686973,1707586243738,-271.97624192,0.00024094,2]
[313686974,1707586243747,-166.666666,0.00024482,2]
[313686975,1707586243756,-2906.25135508,0.00024599,2]
[313686976,1707586243766,-1622.52737791,0.000247,2]
[313686977,1707586243775,-3584.68307823,0.00025,2]
[313686978,1707586243785,-644.4099216,0.00025,2]
[313686979,1707586243794,-14223.32569851,0.00025,2]
[313686980,1707586243804,-9099.63807775,0.00025,2]
[313686981,1707586243813,-154.87609912,0.00025,2]
[313686982,1707586243822,-150.0,0.00025,2]
[313686983,1707586243832,-182.109109,0.00025,2]
[313686984,1707586243841,-150.0,0.00025094,2]
[313686985,1707586243850,-169.5463,0.00025354,2]
[313686986,1707586243859,-1650.89697653,0.00025997,2]
[313686987,1707586243869,-280.60910696,0.00026,2]
[313686988,1707586243878,-154.87609912,0.00026,7]
[313686989,1707586243888,-150.0,0.00026094,2]
[313686990,1707586243897,-200.0,0.00026165,15]
[313686991,1707586243907,-348.0,0.00026165,15]
[313686992,1707586243916,-623.42941488,0.00026334,2]
[313686993,1707586243926,-35124.60863272,0.000265,3]
[313686994,1707586243935,-1000.0,0.00026521,3]
[313686995,1707586243945,-5000.0,0.00026643,2]
[313686996,1707586243954,-19483.47077091,0.000267,2]
[313686997,1707586243964,-190.8011857,0.000267,2]
[313686998,1707586243974,-2101.82444739,0.00026794,2]
[313686999,1707586243983,-154.8915759,0.00026794,2]
[313687000,1707586243992,-294.68032616,0.00026794,2]
[313687001,1707586244002,-2606.4717958,0.00026794,2]
[313687002,1707586244012,-685.64007105,0.00026794,2]
[313687003,1707586244021,-4940.59301486,0.00026795,2]
[313687004,1707586244031,-1587.53818011,0.00026795,2]
[313687005,1707586244041,-255.73843262,0.00026797,2]
[313687006,1707586244050,-231.88068923,0.00026797,2]
[313687007,1707586244060,-640.48860722,0.00026797,2]
[313687008,1707586244070,-232.68730694,0.00026797,2]
[313687009,1707586244081,-169.5872925,0.00026798,2]
[313687010,1707586244091,-2331.36981162,0.00026799,2]
[313687011,1707586244101,-21515.51516978,0.000268,2]
[313687025,1707586246585,-161.52708074,0.00020927,2]
[313687027,1707586246594,-156.51705845,0.00020927,2]
[313687029,1707586246603,-500.0,0.00020927,2]
[313687031,1707586246613,-1018.41805308,0.00020927,2]
[313687033,1707586246622,-1673.79,0.0002669,3]
[313687035,1707586246631,-18937.54780873,0.000268,2]
[313687058,1707586332986,1651.30347608,0.00029,30]
[313687126,1707587003765,-5000000.0,0.00041851,60]
[313690927,1707587250103,-169.5463,0.00019598,2]
[313690928,1707587250125,-370.41674872,0.00019872,2]
[313692821,1707587432542,-24529.58325128,0.00019872,2]
[313692822,1707587432551,-209.367465,0.00019872,2]
[313692823,1707587432561,-167.52109951,0.00019999,2]
[313692824,1707587432570,-3331.11583039,0.00020717,2]
[313692825,1707587432579,-2653.95303052,0.00020828,2]
[313692826,1707587432588,-200.0,0.00020864,2]
[313692827,1707587432597,-6414.2,0.00020916,3]
[313692828,1707587432606,-1197.42052821,0.00020924,2]
[313692829,1707587432615,-2606.4717958,0.00020924,2]
[313692830,1707587432624,-294.57728151,0.00020924,2]
[313692832,1707587432634,-535.60283186,0.00020924,2]
[313692834,1707587432645,-640.48860722,0.00020924,2]
[313692835,1707587432655,-324.67194926,0.00020925,2]
[313692837,1707587432664,-16115.78410757,0.00020925,2]
[313692838,1707587432674,-7841.17590548,0.00020926,2]
[313692839,1707587432683,-20933.53573456,0.00020926,2]
[313692841,1707587432693,-1947.3753187,0.00020926,2]
[313692843,1707587432701,-523.68160801,0.00020927,2]
[313692845,1707587432710,-3756.52064681,0.00020927,2]
[313692847,1707587432720,-5854.11087692,0.00020927,2]
[313692848,1707587432730,-609.78077647,0.00020927,2]
[313692849,1707587432739,-2045.10360038,0.00020927,2]
[313692850,1707587432749,-1701.02749137,0.00020977,2]
[313692851,1707587432758,-177.50702528,0.00021625,2]
[313692852,1707587432767,-773.08682026,0.00021625,2]
[313692853,1707587432776,-3810.75447799,0.00021625,2]
[313692854,1707587432785,-166.666666,0.00021918,2]
[313692855,1707587432795,-166.666666,0.00022431,2]
[313692856,1707587432804,-166.666666,0.00022944,2]
[313692857,1707587432814,-280.0,0.00022951,7]
[313692858,1707587432823,-7130.71043414,0.00023,2]
[313692983,1707587438620,-1653.95303052,0.00020977,2]
[313692985,1707587438633,-321.62617504,0.00020977,2]
[313692986,1707587438645,-678.37382496,0.00023,2]
[313692987,1707587438657,-2164.16478749,0.00023,2]
[313692989,1707587438668,-1263.83385034,0.00023,2]
[313692990,1707587438677,-166.666666,0.00023456,2]
[313692991,1707587438686,-166.666666,0.00023969,2]
[313692993,1707587438695,-166.666666,0.00024482,2]
[313692994,1707587438704,-1081.68491861,0.000247,2]
[313692995,1707587438713,-159.81291698,0.00024999,2]
[313692996,1707587438722,-154.8915759,0.00025,2]
[313692998,1707587438733,-335.73756915,0.00025,2]
[313692999,1707587438742,-1640.23202228,0.00025,2]
[313693000,1707587438754,-1347.00387624,0.00025,2]
[313693002,1707587438763,-7.58300692,0.00025,2]
[313693003,1707587438774,-4113.05299601,0.00025,2]
[313693004,1707587438787,-3289.71668599,0.00025,2]
[313693006,1707587438795,-4740.91143851,0.00025,2]
[313693007,1707587438805,-391.0,0.00025246,7]
[313693008,1707587438814,-154.8915759,0.00026,7]
[313693009,1707587438823,-280.60910696,0.00026,2]
[313693011,1707587438832,-3306.60559158,0.00026324,2]
[313693012,1707587438841,-5000.0,0.00026326,2]
[313693013,1707587438850,-1000.0,0.00026521,3]
[313693015,1707587438858,-14126.80682316,0.000268,2]
[313693190,1707587443933,-465.7143465,0.0002679,3]
[313693191,1707587443945,-575.0,0.0002679,3]
[313693193,1707587443957,-4304.4456535,0.0002679,3]
[313693194,1707587443966,-4663.452555,0.000268,2]
[313696073,1707587581403,1644.0,0.00029,31]
[313696087,1707587633946,4417.58534185,0.0001631,2]
[313696088,1707587633970,325.70374195,0.0001631,2]
[313696094,1707587649640,6122.80995703,0.000125,2]
[313696096,1707587663408,269.79403785,0.0001,2]
[313696146,1707588560122,-22399.19572164,0.00021022,2]
[313696147,1707588560148,-6525.75494786,0.00021022,2]
[313696152,1707588573119,-1476.62528079,0.00021022,2]
[313696153,1707588573141,-1659.08726885,0.00021022,2]
[313696154,1707588573161,-876.5941336,0.0002152,2]
[313696155,1707588573184,-981.1601613,0.00021683,2]
[313696156,1707588573207,-828.87350024,0.00021684,2]
[313696157,1707588573228,-152.37655847,0.00021684,2]
[313696158,1707588573250,-286.32795778,0.00021684,2]
[313696159,1707588573270,-209.367465,0.00021699,2]
[313696160,1707588573290,-166.666666,0.00021918,2]
[313696161,1707588573310,-200.0,0.00022072,7]
[313696162,1707588573330,-166.666666,0.00022431,2]
[313696163,1707588573349,-168.422776,0.0002273,2]
[313696164,1707588573371,-174.85311484,0.000229,2]
[313696165,1707588573391,-166.666666,0.00022944,2]
[313696166,1707588573413,-2346.97033222,0.0002299,3]
[313696208,1707588631704,-936.21000015,0.00021022,2]
[313696263,1707588637843,-263.78999985,0.00021022,2]
[313696264,1707588637853,-981.1601613,0.00022989,2]
[313696265,1707588637862,-26.67631955,0.00023,2]
[313696266,1707588637898,-9946.57272704,0.00023,2]
[313696267,1707588637908,-1263.83385034,0.00023,2]
[313696268,1707588637917,-166.666666,0.00023456,2]
[313696269,1707588637926,-166.666666,0.00023969,2]
[313696270,1707588637935,-280.0,0.00024279,7]
[313696271,1707588637946,-166.666666,0.00024482,2]
[313696272,1707588637954,-24900.0,0.00024528,2]
[313696273,1707588637964,-721.12327907,0.000247,2]
[313696275,1707588637975,-7410.35268892,0.00025,2]
[313696277,1707588637985,-154.8915759,0.00025,2]
[313696279,1707588637994,-4740.91143851,0.00025,2]
[313696280,1707588638003,-306.75810694,0.00025,2]
[313696281,1707588638015,-1249.59179619,0.00025,2]
[313696282,1707588638023,-335.73756915,0.00025,2]
[313696283,1707588638032,-150.0,0.00025,2]
[313696284,1707588638042,-1000.0,0.00025131,3]
[313696285,1707588638051,-174.85311482,0.000254,2]
[313696286,1707588638060,-154.8915759,0.00026,7]
[313696287,1707588638069,-280.60910696,0.00026,2]
[313696288,1707588638078,-153.0,0.00026027,2]
[313696289,1707588638087,-10.96418303,0.00026268,2]
[313696295,1707588641056,-609.20728771,0.00026268,2]
[313696296,1707588641065,-5000.0,0.00026341,2]
[313696297,1707588641075,-1000.0,0.00026561,3]
[313696298,1707588641085,-391.0,0.00026707,15]
[313696299,1707588641094,-4141.41,0.0002679,3]
[313696300,1707588641104,-5854.11087692,0.00026798,2]
[313696301,1707588641113,-365.52573424,0.00026798,2]
[313696302,1707588641123,-736.43168818,0.00026798,2]
[313696303,1707588641132,-5354.92037871,0.00026799,2]
[313696304,1707588641141,-6234.61967665,0.000268,2]
[313696305,1707588641152,-8996.72639737,0.000268,2]
[313696359,1707588642837,-1129.85113929,0.000268,2]
[313696360,1707588642847,-3530.40254992,0.000268,2]
[313696361,1707588642859,-456.64440001,0.000268,2]
[313696362,1707588642870,-588.21573289,0.000268,2]
[313696364,1707588642882,-76986.14700392,0.000268,2]
[313696366,1707588642891,-155.10547172,0.000268,2]
[313696368,1707588642900,-154.8915759,0.000268,2]
[313696370,1707588642910,-1470.96796465,0.000268,2]
[313696372,1707588642919,-1406.8167912,0.000269,3]
[313696374,1707588642929,-199.77831197,0.00026999,2]
[313696376,1707588642938,-10392.09973882,0.00026999,2]
[313696378,1707588642946,-1000.0,0.00027,27]
[313696380,1707588642955,-1000.0,0.00027,27]
[313696382,1707588642964,-2044.40304303,0.00027,2]
[313696384,1707588642977,-2000.0,0.00027,2]
[313696386,1707588642986,-796.369011,0.00027,7]
[313696387,1707588642996,-2478.1107,0.00027,7]
[313696389,1707588643005,-7113.04576758,0.00027,2]
[313696391,1707588643015,-184.93340934,0.00027,2]
[313696393,1707588643025,-150.0,0.00027094,2]
[313696395,1707588643034,-155.0,0.00027397,2]
[313696397,1707588643043,-500.0,0.00027397,2]
[313696399,1707588643053,-999.7351508,0.00027397,2]
[313696401,1707588643062,-18588.76340095,0.000275,2]
[313696402,1707588643071,-500.0,0.00027534,2]
[313696403,1707588643081,-150.1,0.00027549,2]
[313696404,1707588643090,-620.00857354,0.00027582,2]
[313696405,1707588643099,-500.0,0.00027671,2]
[313696406,1707588643108,-500.0,0.00027808,2]
[313696407,1707588643117,-273.129394,0.0002783,2]
[313696408,1707588643127,-163.718765,0.0002783,2]
[313696409,1707588643136,-152.11593802,0.00027854,4]
[313696410,1707588643145,-7287.29174359,0.00027855,2]
[313696411,1707588643154,-174.85311482,0.000279,2]
[313696412,1707588643163,-500.0,0.00027945,2]
[313696413,1707588643172,-155.76493416,0.00027997,2]
[313696414,1707588643181,-160.36068527,0.00027997,2]
[313696415,1707588643190,-592.9693191,0.00027997,2]
[313696416,1707588643199,-155.13030946,0.00027998,2]
[313696417,1707588643208,-169.44416868,0.00027998,2]
[313696418,1707588643218,-1716.81726779,0.00028,2]
[313696419,1707588643227,-309.84507746,0.00028,2]
[313696420,1707588643237,-741.66958363,0.00028,2]
[313696421,1707588643246,-201.59700193,0.00028,2]
[313696422,1707588643255,-1000.0,0.00028,28]
[313696423,1707588643264,-1000.0,0.00028,28]
[313696424,1707588643273,-600.0,0.00028,2]
[313696425,1707588643282,-240.44992891,0.00028,2]
[313696426,1707588643291,-72316.30506324,0.00028,2]
[313696427,1707588643300,-226.29332169,0.00028,7]
[313696428,1707588643309,-1000.0,0.00028,10]
[313696429,1707588643318,-80122.0,0.00028,2]
[313696430,1707588643328,-99726.64168218,0.00028,2]
[313696431,1707588643337,-53603.04,0.00028,5]
[313696432,1707588643346,-500.0,0.00028,7]
[313696433,1707588643356,-500.0,0.00028,7]
[313696434,1707588643365,-500.0,0.00028,7]
[313696435,1707588643374,-630.42,0.00028,7]
[313696436,1707588643383,-500.0,0.00028,7]
[313696437,1707588643393,-500.0,0.00028,7]
[313696438,1707588643402,-500.0,0.00028,7]
[313696439,1707588643411,-500.0,0.00028,7]
[313696440,1707588643420,-590.0,0.00028,7]
[313696441,1707588643429,-500.0,0.00028,7]
[313696442,1707588643438,-500.0,0.00028,7]
[313696443,1707588643447,-500.0,0.00028,7]
[313696444,1707588643455,-500.0,0.00028,7]
[313696445,1707588643464,-500.0,0.00028,7]
[313696446,1707588643473,-200.0,0.00028,4]
[313696447,1707588643482,-3615.7049155,0.00028,2]
[313696448,1707588643491,-865.44397111,0.00028,2]
[313696449,1707588643501,-684.86715572,0.00028,2]
[313696450,1707588643510,-500.0,0.00028082,2]
[313696451,1707588643518,-150.0,0.00028094,2]
[313696452,1707588643528,-163.718765,0.00028178,2]
[313696453,1707588643537,-273.129394,0.00028178,2]
[313696454,1707588643546,-500.0,0.00028219,2]
[313696455,1707588643555,-160.67795005,0.0002828,2]
[313696456,1707588643564,-500.0,0.00028356,2]
[313696457,1707588643573,-500.0,0.00028493,2]
[313696458,1707588643582,-700.000001,0.000285,2]
[313696459,1707588643591,-16284.69759577,0.000285,2]
[313696460,1707588643601,-578.0,0.000285,2]
[313696461,1707588643610,-163.718765,0.00028526,2]
[313696462,1707588643619,-273.129394,0.00028526,2]
[313696463,1707588643628,-150.89437394,0.00028622,7]
[313696464,1707588643637,-500.0,0.0002863,2]
[313696465,1707588643646,-7000.0,0.000287,2]
[313696466,1707588643656,-7000.0,0.000287,2]
[313696467,1707588643665,-7040.0,0.000287,2]
[313696468,1707588643675,-1000.0,0.00028719,2]
[313696469,1707588643684,-1000.0,0.00028723,2]
[313696470,1707588643693,-511.7975747,0.00028728,2]
[313696480,1707588645815,-389.81045533,0.00028728,2]
[313696481,1707588645828,-98.39196997,0.00028728,2]
[313696482,1707588645837,-618.87619383,0.00028733,2]
[313696541,1707589642107,-219.95367,0.00021045,2]
[313696542,1707589642127,-13.45017887,0.0002105,2]
[313696579,1707589832004,-981.1601613,0.00020879,2]
[313696580,1707589832013,-250.0,0.00020881,2]
[313696581,1707589832023,-1200.0,0.0002105,2]
[313696582,1707589832032,-425.25687285,0.00021065,2]
[313696584,1707589832041,-211.6692006,0.00021065,2]
[313696586,1707589832050,-4920.09651722,0.00021065,2]
[313696588,1707589832059,-1095.59191242,0.00021779,2]
[313696589,1707589832068,-210.75865799,0.00021779,2]
[313696590,1707589832077,-517.51248553,0.00021779,2]
[313696591,1707589832087,-166.666666,0.00021987,2]
[313696592,1707589832096,-24900.0,0.00022075,2]
[313696593,1707589832105,-200.0,0.00022117,7]
[313696594,1707589832114,-767.01207418,0.00022135,5]
[313696595,1707589832123,-9289.9650566,0.00022248,2]
[313696596,1707589832132,-166.666666,0.00022586,2]
[313696597,1707589832141,-9973.24904659,0.00023,2]
[313696598,1707589832149,-166.666666,0.00023186,2]
[313696599,1707589832159,-166.666666,0.00023785,2]
[313696600,1707589832169,-169.5463,0.0002428,2]
[313696601,1707589832177,-280.0,0.00024329,7]
[313696602,1707589832187,-166.666666,0.00024385,2]
[313696603,1707589832196,-166.666666,0.00024984,2]
[313696604,1707589832205,-1836.68,0.0002499,3]
[313696605,1707589832214,-154.8915759,0.00025,2]
[313696606,1707589832224,-4740.91143851,0.00025,2]
[313696607,1707589832234,-335.73756915,0.00025,2]
[313696608,1707589832244,-1556.34990313,0.00025,2]
[313696609,1707589832253,-7410.35268892,0.00025,2]
[313696610,1707589832263,-480.74885271,0.000259,2]
[313696611,1707589832272,-184.26690001,0.000259,2]
[313696612,1707589832282,-280.60910696,0.00026,2]
[313696613,1707589832291,-154.8915759,0.00026,7]
[313696614,1707589832301,-391.0,0.00026762,15]
[313696615,1707589832313,-184.2669,0.00026878,2]
[313696616,1707589832322,-3923.0,0.00027,2]
[313696617,1707589832331,-196.0,0.00027,2]
[313696618,1707589832340,-5927.53813965,0.00027,2]
[313696619,1707589832350,-166.0,0.00027,2]
[313696620,1707589832360,-153.0,0.00027,2]
[313696621,1707589832369,-8680.98940855,0.00027296,4]
[313696622,1707589832378,-500.0,0.00027397,2]
[313696623,1707589832390,-500.0,0.00027534,2]
[313696624,1707589832399,-150.1,0.00027549,2]
[313696625,1707589832409,-500.0,0.00027671,2]
[313696626,1707589832418,-3923.0,0.00027671,2]
[313696627,1707589832427,-165.039854,0.00027739,2]
[313696628,1707589832437,-500.0,0.00027808,2]
[313696629,1707589832446,-155.0,0.00027811,2]
[313696630,1707589832456,-184.2669,0.00027856,2]
[313696631,1707589832465,-500.0,0.00027945,2]
[313696632,1707589832475,-3923.0,0.00027945,2]
[313696633,1707589832485,-200.81,0.00028,4]
[313696634,1707589832494,-741.82846738,0.00028,2]
[313696635,1707589832503,-201.64462394,0.00028,2]
[313696636,1707589832513,-3295.80975819,0.00028,2]
[313696637,1707589832522,-600.0,0.00028,2]
[313696638,1707589832531,-200.75635052,0.00028,2]
[313696639,1707589832540,-509.66927933,0.00028,2]
[313696640,1707589832550,-150.0,0.00028019,2]
[313696641,1707589832559,-500.0,0.00028082,2]
[313696642,1707589832568,-500.0,0.00028219,2]
[313696643,1707589832577,-316.5371774,0.00028219,2]
[313696644,1707589832586,-3923.0,0.00028219,2]
[313696645,1707589832596,-500.0,0.00028356,2]
[313696646,1707589832605,-292.9213054,0.000284,2]
[313696651,1707589838200,-294.68032616,0.00020878,2]
[313696652,1707589838209,-125.22918418,0.000284,2]
[313696659,1707589841259,-159.84951042,0.000284,2]
[313696660,1707589841268,-131.47215584,0.00028493,2]
[313696661,1707589841282,-368.52784416,0.00028493,2]
[313696662,1707589841290,-3923.0,0.00028493,2]
[313696663,1707589841300,-153.0,0.00028493,2]
[313696664,1707589841310,-167.40104025,0.00028607,2]
[313696665,1707589841320,-185.07172042,0.00028607,2]
[313696666,1707589841329,-3105.06100241,0.00028607,2]
[313696671,1707589843639,-1637.53249506,0.00023,2]
[313696672,1707589843694,-5573.86654311,0.00023,2]
[313696673,1707589843704,-226.05482798,0.00028607,2]
[313696674,1707589843713,-500.0,0.00028608,2]
[313696675,1707589843723,-500.0,0.00028608,2]
[313696676,1707589843732,-500.0,0.00028608,2]
[313696677,1707589843742,-223.51810289,0.00028608,2]
[313696678,1707589843751,-241.60116461,0.00028608,2]
[313696679,1707589843760,-500.0,0.00028608,2]
[313696680,1707589843769,-500.0,0.00028608,2]
[313696681,1707589843778,-500.0,0.00028608,2]
[313696682,1707589843787,-500.0,0.00028608,2]
[313696683,1707589843797,-649.99237831,0.00028608,2]
[313696684,1707589843807,-500.0,0.00028608,2]
[313696685,1707589843816,-381.93820134,0.00028608,2]
[313696686,1707589843825,-500.0,0.00028608,2]
[313696687,1707589843834,-500.0,0.00028608,2]
[313696688,1707589843845,-500.0,0.00028608,2]
[313696689,1707589843854,-500.0,0.00028608,2]
[313696690,1707589843863,-500.0,0.00028608,2]
[313696691,1707589843872,-598.65430698,0.00028608,2]
[313696692,1707589843882,-19138.64568776,0.00028609,2]
[313696693,1707589843892,-159.6664231,0.0002863,2]
[313696694,1707589843901,-381.12380617,0.00028733,2]
[313696695,1707589843910,-154.8915759,0.00028733,2]
[313696696,1707589843920,-1470.96796465,0.00028733,2]
[313696697,1707589843929,-1000.0,0.00028746,2]
[313696698,1707589843938,-11001.27332458,0.00028748,2]
[313696699,1707589843947,-744.174309,0.00028749,2]
[313696700,1707589843957,-177.850645,0.00028749,2]
[313696701,1707589843966,-266.775969,0.00028749,2]
[313696702,1707589843975,-188.44955,0.00028749,2]
[313696703,1707589843984,-187.944828,0.00028749,2]
[313696704,1707589843993,-190.489237,0.00028749,2]
[313696705,1707589844002,-296.363545,0.00028749,2]
[313696706,1707589844010,-282.325143,0.00028749,2]
[313696707,1707589844019,-197.0,0.00028767,2]
[313696708,1707589844028,-3923.0,0.00028767,2]
[313696709,1707589844037,-3923.0,0.00028767,2]
[313696710,1707589844046,-153.0,0.00028767,2]
[313696711,1707589844055,-166.0,0.00028767,2]
[313696712,1707589844064,-1000.0,0.00028823,2]
[313696713,1707589844073,-184.2669,0.00028834,2]
[313696714,1707589844082,-163.718765,0.00028874,2]
[313696715,1707589844091,-273.129394,0.00028874,2]
[313696716,1707589844100,-1006.1405199,0.00028878,2]
[313696717,1707589844111,-3145.06,0.00028886,3]
[313696718,1707589844121,-443.13505436,0.00028891,2]
[313696719,1707589844132,-155.49010234,0.00028894,2]
[313696720,1707589844143,-4705.42271849,0.00028895,2]
[313696721,1707589844153,-2822.61727091,0.00028896,2]
[313696722,1707589844163,-2606.4717958,0.00028896,2]
[313696723,1707589844173,-330.57744299,0.00028897,2]
[313696724,1707589844183,-3756.52064681,0.00028898,2]
[313696725,1707589844194,-1264.56481324,0.00028898,2]
[313696726,1707589844203,-199.77831197,0.00028898,2]
[313696727,1707589844212,-1434.09189254,0.00028898,2]
[313696728,1707589844222,-155.19223926,0.00028898,2]